fUSD/lending_fUSD_20241203
["ID","MTS","AMOUNT","RATE_DAILY","PERIOD"]
[344054767,1733250325014,-500.0,0.00025821,120]
[344054768,1733250325080,-500.0,0.00025821,120]
[344054769,1733250325152,-500.0,0.00025821,120]
[344054770,1733250325217,-500.0,0.00025821,120]
[344054771,1733250325282,-500.0,0.00025821,120]
[344054772,1733250325352,-500.0,0.00025821,120]
[344054773,1733250325418,-500.0,0.00025821,120]
[344054774,1733250325480,-374.0777018,0.00025821,120]
[344054775,1733250325544,-190.58446746,0.00025821,120]
[344054776,1733250325607,-500.0,0.00025821,120]
[344054777,1733250325670,-500.0,0.00025821,120]
[344054778,1733250325732,-500.0,0.00025821,120]
[344054779,1733250325793,-500.0,0.00025821,120]
[344054780,1733250325858,-500.0,0.00025821,120]
[344054781,1733250325921,-500.0,0.00025821,120]
[344054782,1733250325985,-500.0,0.00025821,120]
[344054783,1733250326049,-500.0,0.00025821,120]
[344054784,1733250326112,-500.0,0.00025821,120]
[344054785,1733250326175,-500.0,0.00025821,120]
[344054786,1733250326239,-500.0,0.00025821,120]
[344054787,1733250326302,-500.0,0.00025821,120]
[344054788,1733250326365,-500.0,0.00025821,120]
[344054789,1733250326425,-500.0,0.00025821,120]
[344054790,1733250326488,-500.0,0.00025821,120]
[344054791,1733250326549,-500.0,0.00025821,120]
[344054792,1733250326609,-500.0,0.00025821,120]
[344054793,1733250326671,-500.0,0.00025821,120]
[344054794,1733250326734,-500.0,0.00025821,120]
[344054795,1733250326797,-500.0,0.00025821,120]
[344054796,1733250326857,-500.0,0.00025821,120]
[344054797,1733250326919,-500.0,0.00025821,120]
[344054798,1733250326982,-500.0,0.00025821,120]
[344054799,1733250327043,-855.7,0.00025821,120]
[344054800,1733250327104,-500.0,0.00025821,120]
[344054801,1733250327166,-500.0,0.00025821,120]
[344054802,1733250327227,-500.0,0.00025821,120]
[344054803,1733250327289,-946.86,0.00025821,120]
[344054804,1733250327349,-500.0,0.00025821,120]
[344054805,1733250327411,-500.0,0.00025821,120]
[344054806,1733250327476,-154.05752791,0.00025821,120]
[344054807,1733250327536,-500.0,0.00025821,120]
[344054808,1733250327599,-712.66,0.00025821,120]
[344054809,1733250327659,-500.0,0.00025821,120]
[344054810,1733250327722,-1260.38,0.00025821,120]
[344054811,1733250327789,-949.7,0.00025821,120]
[344054812,1733250327849,-500.0,0.00025821,120]
[344054813,1733250327910,-500.0,0.00025821,120]
[344054814,1733250327970,-910.65,0.00025821,120]
[344054815,1733250328032,-500.0,0.00025821,120]
[344054816,1733250328097,-500.0,0.00025821,120]
[344054817,1733250328159,-687.78,0.00025821,120]
[344054818,1733250328222,-500.0,0.00025821,120]
[344054819,1733250328283,-1018.27,0.00025821,120]
[344054820,1733250328343,-513.03,0.00025821,120]
[344054821,1733250328406,-380.16513373,0.00025821,120]
[344054822,1733250328468,-500.0,0.00025821,120]
[344054823,1733250328532,-500.0,0.00025821,120]
[344054824,1733250328593,-500.0,0.00025821,120]
[344054825,1733250328656,-936.9,0.00025821,120]
[344054826,1733250328716,-500.0,0.00025821,120]
[344054827,1733250328779,-624.78,0.00025821,120]
[344054828,1733250328837,-736.49,0.00025821,120]
[344054829,1733250328896,-500.0,0.00025821,120]
[344054830,1733250328956,-500.0,0.00025821,120]
[344054831,1733250329022,-622.83,0.00025821,120]
[344054832,1733250329083,-500.0,0.00025821,120]
[344054833,1733250329141,-337.33911861,0.00025821,120]
[344054834,1733250329203,-500.0,0.00025821,120]
[344054835,1733250329265,-500.0,0.00025821,120]
[344054836,1733250329326,-769.34,0.00025821,120]
[344054837,1733250329735,-1520.92,0.00025821,120]
[344054838,1733250329802,-500.0,0.00025821,120]
[344054839,1733250329862,-1047.21,0.00025821,120]
[344054840,1733250329925,-1109.54,0.00025821,120]
[344054841,1733250329985,-500.0,0.00025821,120]
[344054842,1733250330053,-1364.18,0.00025821,120]
[344054843,1733250330118,-1396.7,0.00025821,120]
[344054844,1733250330180,-500.0,0.00025821,120]
[344054845,1733250330242,-329.07654988,0.00025821,120]
[344054846,1733250330305,-953.33,0.00025821,120]
[344054847,1733250330371,-1327.84,0.00025821,120]
[344054848,1733250330432,-500.0,0.00025821,120]
[344054849,1733250330496,-862.9,0.00025821,120]
[344054850,1733250330561,-1022.1,0.00025821,120]
[344054851,1733250330622,-500.0,0.00025821,120]
[344054852,1733250330685,-500.0,0.00025821,120]
[344054853,1733250330744,-1082.54,0.00025821,120]
[344054854,1733250330805,-965.21,0.00025821,120]
[344054855,1733250330866,-500.0,0.00025821,120]
[344054856,1733250330932,-500.0,0.00025821,120]
[344054857,1733250330995,-760.33,0.00025821,120]
[344054858,1733250331059,-500.0,0.00025821,120]
[344054859,1733250331119,-593.13154541,0.00025821,120]
[344054860,1733250331181,-500.0,0.00025821,120]
[344054861,1733250331241,-500.0,0.00025821,120]
[344054862,1733250331304,-623.32,0.00025821,120]
[344054863,1733250331369,-915.3,0.00025821,120]
[344054864,1733250331432,-500.0,0.00025821,120]
[344054865,1733250331495,-500.0,0.00025821,120]
[344054866,1733250331560,-500.0,0.00025821,120]
[344054867,1733250331622,-500.0,0.00025821,120]
[344054868,1733250331686,-616.61,0.00025821,120]
[344054870,1733250331746,-500.0,0.00025821,120]
[344054871,1733250331805,-1604.13,0.00025821,120]
[344054872,1733250331868,-500.0,0.00025821,120]
[344054873,1733250331929,-988.77,0.00025821,120]
[344054874,1733250331995,-500.0,0.00025821,120]
[344054875,1733250332058,-315.29776076,0.00025821,120]
[344054876,1733250332119,-500.0,0.00025821,120]
[344054877,1733250332186,-489.49274575,0.00025821,120]
[344054878,1733250332251,-500.0,0.00025821,120]
[344054879,1733250332313,-500.0,0.00025821,120]
[344054880,1733250332374,-909.96,0.00025821,120]
[344054881,1733250332433,-669.97,0.00025821,120]
[344054882,1733250332497,-820.14,0.00025821,120]
[344054883,1733250332559,-500.0,0.00025821,120]
[344054884,1733250332621,-706.07,0.00025821,120]
[344054885,1733250332680,-500.0,0.00025821,120]
[344054886,1733250332740,-566.41,0.00025821,120]
[344054887,1733250332799,-500.0,0.00025821,120]
[344054888,1733250332858,-525.44997278,0.00025821,120]
[344054889,1733250332920,-500.0,0.00025821,120]
[344054890,1733250332980,-893.42,0.00025821,30]
[344054891,1733250333043,-500.0,0.00025821,120]
[344054892,1733250333106,-500.0,0.00025821,120]
[344054893,1733250333169,-1173.35,0.00025821,120]
[344054894,1733250333233,-673.39,0.00025821,120]
[344054895,1733250333296,-1040.51,0.00025821,120]
[344054896,1733250333359,-500.0,0.00025821,120]
[344054897,1733250333420,-510.51,0.00025821,120]
[344054898,1733250333482,-500.0,0.00025821,120]
[344054899,1733250333543,-923.73,0.00025821,120]
[344054900,1733250333602,-500.0,0.00025821,120]
[344054901,1733250333663,-500.0,0.00025821,120]
[344054902,1733250333719,-500.0,0.00025821,120]
[344054903,1733250333786,-500.0,0.00025821,120]
[344054904,1733250333848,-884.05,0.00025821,120]
[344054905,1733250333906,-500.0,0.00025821,120]
[344054906,1733250333967,-837.35,0.00025821,120]
[344054907,1733250334031,-500.0,0.00025821,120]
[344054908,1733250334095,-500.0,0.00025821,120]
[344054909,1733250334156,-1125.86,0.00025821,120]
[344054910,1733250334217,-1579.98,0.00025821,120]
[344054911,1733250334284,-942.04,0.00025821,120]
[344054912,1733250334341,-568.03,0.00025821,120]
[344054913,1733250334405,-912.89,0.00025821,120]
[344054914,1733250334466,-500.0,0.00025821,120]
[344054915,1733250334534,-500.0,0.00025821,120]
[344054916,1733250334598,-500.0,0.00025821,120]
[344054917,1733250334659,-1265.19,0.00025821,120]
[344054918,1733250334722,-500.0,0.00025821,120]
[344054919,1733250334785,-500.0,0.00025821,120]
[344054920,1733250334844,-1753.66,0.00025821,120]
[344054921,1733250334906,-633.78,0.00025821,120]
[344054922,1733250334968,-1629.32,0.00025821,120]
[344054923,1733250335035,-251.05591884,0.00025821,120]
[344054924,1733250335097,-500.0,0.00025821,120]
[344054925,1733250335156,-500.0,0.00025821,120]
[344054926,1733250335217,-500.0,0.00025821,120]
[344054927,1733250335279,-500.0,0.00025821,120]
[344054928,1733250335339,-500.0,0.00025821,120]
[344054929,1733250335399,-918.63,0.00025821,120]
[344054930,1733250335458,-1241.12,0.00025821,120]
[344054931,1733250335519,-500.0,0.00025821,120]
[344054932,1733250335576,-500.0,0.00025821,120]
[344054933,1733250335909,-500.0,0.00025821,120]
[344054934,1733250335971,-960.76,0.00025821,120]
[344054935,1733250336034,-500.0,0.00025821,120]
[344054936,1733250336097,-911.51,0.00025821,120]
[344054937,1733250336157,-500.0,0.00025821,120]
[344054938,1733250336218,-1111.65,0.00025821,120]
[344054939,1733250336279,-500.0,0.00025821,120]
[344054940,1733250336339,-500.0,0.00025821,120]
[344054941,1733250336397,-548.52,0.00025821,120]
[344054942,1733250336469,-500.0,0.00025821,120]
[344054943,1733250336537,-500.0,0.00025821,120]
[344054944,1733250336598,-500.0,0.00025821,120]
[344054945,1733250336657,-500.0,0.00025821,120]
[344054946,1733250336715,-500.0,0.00025821,120]
[344054947,1733250336779,-500.0,0.00025821,120]
[344054948,1733250336843,-869.18,0.00025821,120]
[344054949,1733250336906,-500.0,0.00025821,120]
[344054950,1733250336971,-945.44,0.00025821,120]
[344054951,1733250337036,-500.0,0.00025821,120]
[344054952,1733250337103,-962.7,0.00025821,120]
[344054953,1733250337169,-564.00596117,0.00025821,120]
[344054954,1733250337232,-527.7558212,0.00025821,120]
[344054955,1733250337299,-500.0,0.00025821,120]
[344054956,1733250337361,-500.0,0.00025821,120]
[344054957,1733250337427,-938.44,0.00025821,120]
[344054958,1733250337491,-545.11058336,0.00025821,120]
[344054959,1733250337555,-815.51,0.00025821,120]
[344054960,1733250337619,-500.0,0.00025821,120]
[344054961,1733250337680,-500.0,0.00025821,120]
[344054962,1733250337743,-863.82,0.00025821,120]
[344054963,1733250337806,-470.08436265,0.00025821,120]
[344054964,1733250337868,-982.03,0.00025821,120]
[344054965,1733250337932,-902.44,0.00025821,120]
[344054966,1733250337991,-500.0,0.00025821,120]
[344054967,1733250338057,-948.72,0.00025821,120]
[344054968,1733250338119,-500.0,0.00025821,120]
[344054969,1733250338181,-785.84,0.00025821,120]
[344054970,1733250338243,-736.28,0.00025821,120]
[344054971,1733250338303,-797.14,0.00025821,120]
[344054972,1733250338367,-611.8,0.00025821,120]
[344054973,1733250338428,-732.99,0.00025821,120]
[344054974,1733250338489,-865.2,0.00025821,120]
[344054975,1733250338549,-500.0,0.00025821,120]
[344054976,1733250338610,-709.59,0.00025821,120]
[344054977,1733250338670,-500.0,0.00025821,120]
[344054978,1733250338729,-578.12,0.00025821,120]
[344054979,1733250338788,-579.58,0.00025821,120]
[344054980,1733250338843,-1289.38,0.00025821,120]
[344054981,1733250338901,-2324.68,0.00025821,120]
[344054982,1733250338961,-500.0,0.00025821,120]
[344054983,1733250339020,-718.18,0.00025821,120]
[344054984,1733250339079,-500.0,0.00025821,120]
[344054985,1733250339138,-500.0,0.00025821,120]
[344054986,1733250339198,-790.9,0.00025821,120]
[344054987,1733250339257,-500.0,0.00025821,120]
[344054988,1733250339319,-500.0,0.00025821,120]
[344054989,1733250339377,-922.82,0.00025821,120]
[344054990,1733250339437,-500.0,0.00025821,120]
[344054991,1733250339497,-500.0,0.00025821,120]
[344054992,1733250339552,-617.18740504,0.00025821,120]
[344054993,1733250339610,-1048.08,0.00025821,120]
[344054994,1733250339665,-1931.35,0.00025821,120]
[344054995,1733250339726,-1128.61,0.00025821,120]
[344054996,1733250339790,-500.0,0.00025821,120]
[344054997,1733250339848,-500.0,0.00025821,120]
[344054998,1733250339906,-503.71104904,0.00025821,120]
[344054999,1733250339965,-1010.23,0.00025821,120]
[344055000,1733250340026,-500.0,0.00025821,120]
[344055001,1733250340084,-500.0,0.00025821,120]
[344055003,1733250340141,-632.01,0.00025821,120]
[344055004,1733250340201,-500.0,0.00025821,120]
[344055005,1733250340261,-2352.37,0.00025821,120]
[344055006,1733250340323,-638.45,0.00025821,120]
[344055007,1733250340381,-500.0,0.00025821,120]
[344055008,1733250340439,-1327.31,0.00025821,120]
[344055009,1733250340501,-1291.5,0.00025821,120]
[344055010,1733250340557,-500.0,0.00025821,120]
[344055011,1733250340615,-1070.56,0.00025821,120]
[344055012,1733250340670,-500.0,0.00025821,120]
[344055013,1733250340727,-500.0,0.00025821,120]
[344055014,1733250340783,-500.0,0.00025821,120]
[344055015,1733250340837,-500.0,0.00025821,120]
[344055016,1733250340892,-500.0,0.00025821,120]
[344055017,1733250340947,-500.0,0.00025821,120]
[344055018,1733250341007,-592.55,0.00025821,120]
[344055019,1733250341064,-1196.34,0.00025821,120]
[344055020,1733250341120,-1715.87,0.00025821,120]
[344055021,1733250341179,-1259.04,0.00025821,120]
[344055022,1733250341238,-500.0,0.00025821,120]
[344055023,1733250341294,-500.0,0.00025821,120]
[344055024,1733250341352,-2192.67,0.00025821,120]
[344055025,1733250341408,-500.0,0.00025821,120]
[344055026,1733250341467,-1359.55,0.00025821,120]
[344055027,1733250341526,-1384.37,0.00025821,120]
[344055028,1733250341583,-1077.03,0.00025821,120]
[344055029,1733250341940,-885.94,0.00025821,120]
[344055030,1733250342002,-675.85,0.00025821,120]
[344055031,1733250342062,-1005.05,0.00025821,120]
[344055032,1733250342121,-1389.23,0.00025821,120]
[344055033,1733250342183,-595.21,0.00025821,120]
[344055034,1733250342241,-500.0,0.00025821,120]
[344055035,1733250342302,-500.0,0.00025821,30]
[344055036,1733250342361,-2544.92,0.00025821,120]
[344055037,1733250342419,-500.0,0.00025821,120]
[344055038,1733250342480,-648.87,0.00025821,120]
[344055039,1733250342540,-500.0,0.00025821,120]
[344055040,1733250342602,-548.15423987,0.00025821,120]
[344055041,1733250342664,-566.09,0.00025821,120]
[344055042,1733250342725,-539.42,0.00025821,120]
[344055043,1733250342784,-500.0,0.00025821,120]
[344055044,1733250342844,-192.81805347,0.00025821,30]
[344055045,1733250342901,-500.0,0.00025821,120]
[344055046,1733250342961,-1013.29,0.00025821,120]
[344055047,1733250343025,-2011.34,0.00025821,120]
[344055048,1733250343086,-500.0,0.00025821,120]
[344055049,1733250343147,-500.0,0.00025821,120]
[344055050,1733250343206,-880.36,0.00025821,120]
[344055051,1733250343265,-736.6,0.00025821,120]
[344055052,1733250343325,-492.57591644,0.00025821,120]
[344055053,1733250343382,-624.2,0.00025821,120]
[344055054,1733250343441,-931.41,0.00025821,120]
[344055055,1733250343498,-500.0,0.00025821,120]
[344055056,1733250343560,-817.82,0.00025821,120]
[344055057,1733250343623,-1059.1,0.00025821,120]
[344055058,1733250343681,-256.4245606,0.00025821,120]
[344055059,1733250343741,-1685.59,0.00025821,120]
[344055060,1733250343802,-500.0,0.00025821,30]
[344055061,1733250343860,-500.0,0.00025821,120]
[344055062,1733250343919,-657.36,0.00025821,120]
[344055063,1733250343980,-1036.2,0.00025821,120]
[344055064,1733250344046,-829.87,0.00025821,120]
[344055065,1733250344111,-1080.51,0.00025821,120]
[344055066,1733250344178,-500.0,0.00025821,120]
[344055067,1733250344244,-500.0,0.00025821,120]
[344055068,1733250344311,-500.0,0.00025821,120]
[344055069,1733250344378,-633.08,0.00025821,120]
[344055070,1733250344442,-1313.56,0.00025821,120]
[344055071,1733250344507,-500.0,0.00025821,120]
[344055072,1733250344571,-4122.57,0.00025821,120]
[344055073,1733250344636,-1957.51,0.00025821,120]
[344055074,1733250344700,-500.0,0.00025821,120]
[344055075,1733250344762,-500.0,0.00025821,120]
[344055076,1733250344824,-1204.87,0.00025821,120]
[344055077,1733250344884,-1401.48,0.00025821,120]
[344055078,1733250344947,-2230.06,0.00025821,120]
[344055079,1733250345006,-545.66,0.00025821,120]
[344055080,1733250345068,-500.0,0.00025821,120]
[344055081,1733250345131,-1576.95,0.00025821,120]
[344055082,1733250345190,-594.63,0.00025821,120]
[344055083,1733250345252,-716.26,0.00025821,120]
[344055084,1733250345314,-500.0,0.00025821,120]
[344055085,1733250345378,-1171.79,0.00025821,120]
[344055086,1733250345439,-1051.44,0.00025821,120]
[344055087,1733250345500,-500.0,0.00025821,120]
[344055088,1733250345564,-1529.1,0.00025821,120]
[344055089,1733250345623,-513.47,0.00025821,120]
[344055090,1733250345684,-500.0,0.00025821,120]
[344055091,1733250345744,-500.0,0.00025821,120]
[344055092,1733250345804,-500.0,0.00025821,120]
[344055093,1733250345862,-3571.46,0.00025821,120]
[344055094,1733250345918,-1380.54,0.00025821,120]
[344055095,1733250345977,-500.0,0.00025821,120]
[344055096,1733250346036,-928.3,0.00025821,120]
[344055097,1733250346096,-1122.31,0.00025821,120]
[344055098,1733250346155,-1004.61,0.00025821,120]
[344055099,1733250346213,-500.0,0.00025821,120]
[344055100,1733250346275,-500.0,0.00025821,120]
[344055101,1733250346332,-500.0,0.00025821,120]
[344055102,1733250346393,-1367.33,0.00025821,120]
[344055103,1733250346450,-500.0,0.00025821,120]
[344055104,1733250346511,-1280.51,0.00025821,120]
[344055105,1733250346570,-953.6,0.00025821,120]
[344055106,1733250346630,-549.48,0.00025821,120]
[344055107,1733250346691,-1935.74,0.00025821,120]
[344055108,1733250346751,-1845.16,0.00025821,120]
[344055109,1733250346819,-500.0,0.00025821,120]
[344055110,1733250346880,-500.0,0.00025821,120]
[344055111,1733250346941,-955.91,0.00025821,120]
[344055112,1733250347001,-980.14,0.00025821,120]
[344055113,1733250347061,-523.65,0.00025821,120]
[344055114,1733250347125,-500.0,0.00025821,120]
[344055115,1733250347185,-2137.71,0.00025821,120]
[344055116,1733250347247,-500.0,0.00025821,120]
[344055117,1733250347314,-500.0,0.00025821,120]
[344055118,1733250347375,-367.03127835,0.00025821,120]
[344055119,1733250347434,-1259.16,0.00025821,120]
[344055120,1733250347494,-500.0,0.00025821,120]
[344055121,1733250347555,-500.0,0.00025821,120]
[344055122,1733250347615,-500.0,0.00025821,120]
[344055123,1733250347675,-996.84,0.00025821,120]
[344055124,1733250348027,-938.95,0.00025821,120]
[344055125,1733250348087,-808.07,0.00025821,120]
[344055126,1733250348149,-1125.98,0.00025821,120]
[344055127,1733250348214,-1136.68,0.00025821,120]
[344055128,1733250348275,-600.57,0.00025821,120]
[344055129,1733250348351,-2302.99,0.00025821,120]
[344055130,1733250348425,-586.03,0.00025821,120]
[344055131,1733250348497,-500.0,0.00025821,120]
[344055132,1733250348558,-904.92,0.00025821,120]
[344055133,1733250348620,-2129.82,0.00025821,120]
[344055134,1733250348682,-500.0,0.00025821,120]
[344055135,1733250348743,-605.79,0.00025821,120]
[344055136,1733250348804,-2069.37,0.00025821,120]
[344055137,1733250348865,-500.0,0.00025821,120]
[344055138,1733250348923,-1210.85,0.00025821,120]
[344055139,1733250348986,-800.1,0.00025821,120]
[344055140,1733250349046,-1300.8,0.00025821,120]
[344055141,1733250349107,-500.0,0.00025821,120]
[344055142,1733250349167,-855.32,0.00025821,120]
[344055143,1733250349227,-500.0,0.00025821,120]
[344055144,1733250349294,-1028.77,0.00025821,120]
[344055145,1733250349356,-759.43,0.00025821,120]
[344055146,1733250349419,-610.78,0.00025821,120]
[344055147,1733250349485,-789.23,0.00025821,120]
[344055148,1733250349548,-534.75,0.00025821,120]
[344055149,1733250349610,-683.38,0.00025821,120]
[344055150,1733250349670,-1854.68,0.00025821,120]
[344055151,1733250349731,-500.0,0.00025821,120]
[344055152,1733250349793,-500.0,0.00025821,120]
[344055153,1733250349856,-1161.74,0.00025821,120]
[344055154,1733250349916,-1518.28,0.00025821,120]
[344055155,1733250349980,-500.0,0.00025821,120]
[344055156,1733250350047,-1309.26,0.00025821,120]
[344055157,1733250350110,-4343.74,0.00025821,120]
[344055158,1733250350175,-500.0,0.00025821,120]
[344055159,1733250350239,-1817.19,0.00025821,120]
[344055160,1733250350302,-1963.51,0.00025821,120]
[344055161,1733250350364,-983.0,0.00025821,120]
[344055162,1733250350424,-500.0,0.00025821,120]
[344055163,1733250350489,-1810.34,0.00025821,120]
[344055164,1733250350551,-500.0,0.00025821,120]
[344055165,1733250350611,-500.0,0.00025821,120]
[344055166,1733250350668,-500.0,0.00025821,120]
[344055167,1733250350727,-500.0,0.00025821,120]
[344055168,1733250350786,-809.29,0.00025821,120]
[344055169,1733250350842,-500.0,0.00025821,120]
[344055170,1733250350899,-1208.62,0.00025821,120]
[344055171,1733250350954,-1795.63,0.00025821,120]
[344055172,1733250351014,-1252.33,0.00025821,120]
[344055173,1733250351069,-3616.21,0.00025821,120]
[344055174,1733250351125,-500.0,0.00025821,120]
[344055175,1733250351183,-1547.71,0.00025821,120]
[344055176,1733250351238,-1080.45,0.00025821,120]
[344055177,1733250351294,-500.0,0.00025821,120]
[344055178,1733250351350,-500.0,0.00025821,120]
[344055179,1733250351403,-1000.4,0.00025821,120]
[344055180,1733250351461,-500.0,0.00025821,120]
[344055181,1733250351515,-500.0,0.00025821,120]
[344055182,1733250351571,-3579.15,0.00025821,120]
[344055183,1733250351628,-549.65,0.00025821,120]
[344055184,1733250351682,-1666.85,0.00025821,120]
[344055185,1733250351741,-1271.42,0.00025821,120]
[344055186,1733250351796,-860.44,0.00025821,120]
[344055187,1733250351852,-1167.21,0.00025821,120]
[344055188,1733250351912,-536.78,0.00025821,120]
[344055189,1733250351970,-1334.0,0.00025821,120]
[344055190,1733250352030,-500.0,0.00025821,120]
[344055191,1733250352089,-1018.6,0.00025821,120]
[344055192,1733250352148,-1003.25,0.00025821,120]
[344055193,1733250352208,-500.0,0.00025821,120]
[344055194,1733250352266,-608.56,0.00025821,120]
[344055195,1733250352326,-500.0,0.00025821,120]
[344055196,1733250352384,-500.0,0.00025821,120]
[344055197,1733250352446,-958.24,0.00025821,120]
[344055198,1733250352507,-1163.55,0.00025821,120]
[344055199,1733250352582,-1132.2,0.00025821,120]
[344055200,1733250352645,-500.0,0.00025821,120]
[344055201,1733250352707,-1784.98,0.00025821,120]
[344055202,1733250352770,-1879.95,0.00025821,120]
[344055203,1733250352834,-500.0,0.00025821,120]
[344055204,1733250352894,-1156.91,0.00025821,120]
[344055205,1733250352958,-527.06,0.00025821,120]
[344055206,1733250353022,-500.0,0.00025821,120]
[344055207,1733250353084,-1605.24,0.00025821,120]
[344055208,1733250353148,-500.0,0.00025821,120]
[344055209,1733250353211,-500.0,0.00025821,120]
[344055210,1733250353274,-814.44,0.00025821,120]
[344055211,1733250353333,-500.0,0.00025821,120]
[344055212,1733250353391,-551.31071187,0.00025821,120]
[344055213,1733250353453,-2557.05,0.00025821,120]
[344055214,1733250353511,-500.0,0.00025821,120]
[344055215,1733250353572,-2385.34,0.00025821,120]
[344055216,1733250353631,-916.24,0.00025821,120]
[344055217,1733250353688,-2737.05,0.00025821,120]
[344055218,1733250354146,-3222.85,0.00025821,120]
[344055219,1733250354212,-500.0,0.00025821,120]
[344055220,1733250354279,-500.0,0.00025821,120]
[344055221,1733250354339,-990.52,0.00025821,120]
[344055222,1733250354402,-500.0,0.00025821,120]
[344055223,1733250354463,-1459.93,0.00025821,120]
[344055224,1733250354538,-1131.65,0.00025821,120]
[344055225,1733250354599,-500.0,0.00025821,120]
[344055226,1733250354658,-943.69,0.00025821,120]
[344055227,1733250354717,-2603.73,0.00025821,120]
[344055228,1733250354776,-1315.08,0.00025821,120]
[344055229,1733250354838,-932.09,0.00025821,120]
[344055230,1733250354904,-500.0,0.00025821,120]
[344055231,1733250354972,-1688.06,0.00025821,120]
[344055232,1733250355041,-937.1,0.00025821,120]
[344055233,1733250355107,-1786.64,0.00025821,120]
[344055234,1733250355168,-1112.39,0.00025821,120]
[344055235,1733250355228,-521.82,0.00025821,120]
[344055236,1733250355289,-2472.22,0.00025821,120]
[344055237,1733250355349,-988.68,0.00025821,120]
[344055238,1733250355408,-1034.99,0.00025821,120]
[344055239,1733250355465,-500.0,0.00025821,120]
[344055240,1733250355530,-1620.61,0.00025821,120]
[344055241,1733250355589,-3018.4,0.00025821,120]
[344055242,1733250355647,-500.0,0.00025821,120]
[344055243,1733250355705,-1035.74,0.00025821,120]
[344055244,1733250355763,-1888.2,0.00025821,120]
[344055245,1733250355818,-2914.75,0.00025821,120]
[344055246,1733250355874,-500.0,0.00025821,120]
[344055247,1733250355929,-500.0,0.00025821,120]
[344055248,1733250355988,-500.0,0.00025821,120]
[344055249,1733250356047,-694.75,0.00025821,120]
[344055250,1733250356102,-1239.91,0.00025821,120]
[344055251,1733250356160,-1576.33,0.00025821,120]
[344055252,1733250356216,-500.0,0.00025821,120]
[344055253,1733250356275,-500.0,0.00025821,120]
[344055254,1733250356333,-500.0,0.00025821,120]
[344055255,1733250356390,-500.0,0.00025821,120]
[344055256,1733250356447,-500.0,0.00025821,120]
[344055257,1733250356506,-571.12,0.00025821,120]
[344055258,1733250356563,-1273.86,0.00025821,120]
[344055259,1733250356620,-500.0,0.00025821,120]
[344055260,1733250356676,-711.04,0.00025821,120]
[344055261,1733250356742,-500.0,0.00025821,120]
[344055262,1733250356805,-2336.62,0.00025821,120]
[344055263,1733250356863,-1294.95,0.00025821,120]
[344055264,1733250356927,-800.19,0.00025821,120]
[344055265,1733250356991,-243.5823966,0.00025821,120]
[344055266,1733250357052,-615.10159411,0.00025821,120]
[344055267,1733250357115,-1662.61,0.00025821,120]
[344055268,1733250357177,-866.17,0.00025821,120]